bitfinex-derivatives/quotes_SOLF0:USTF0_20240924
["timestamp","ask_amount","ask_price","bid_price","bid_amount"]
[1727182606952,25.68404553,147.34,147.31,9.4]
[1727182607849,22.29024553,147.34,147.31,9.4]
[1727182608047,22.29024553,147.34,147.31,12.7943]
[1727182608552,25.68384553,147.34,147.31,9.4]
[1727182609455,22.29024553,147.34,147.31,12.7943]
[1727182610041,22.29024553,147.34,147.33,3.3939]
[1727182610246,18.27505056,147.35,147.33,9.4]
[1727182610454,16.1113743,147.36,147.34,9.4]
[1727182610653,16.1113743,147.36,147.35,9.4]
[1727182611353,16.1113743,147.36,147.35,12.7934]
[1727182614946,16.54071633,147.38,147.35,9.4]
[1727182615146,16.54071633,147.38,147.37,9.4]
[1727182615748,16.54071633,147.38,147.37,12.7929]
[1727182616851,16.54071633,147.38,147.36,3.3931]
[1727182617057,16.54071633,147.38,147.37,9.4]
[1727182619955,16.54071633,147.38,147.37,12.7929]
[1727182620855,24.4690796,147.41,147.37,9.4]
[1727182621049,24.4690796,147.41,147.4,9.4]
[1727182621356,24.4690796,147.41,147.38,3.3927]
[1727182621551,24.4690796,147.41,147.39,9.4]
[1727182622157,24.4690796,147.41,147.39,12.7924]
[1727182622552,24.4690796,147.41,147.4,9.4]
[1727182622757,24.4690796,147.41,147.4,12.7923]
[1727182623764,24.4690796,147.41,147.37,92.07616132]
[1727182623959,24.4690796,147.41,147.4,9.4]
[1727182624160,24.4690796,147.41,147.4,12.7923]
[1727182626160,24.4690796,147.41,147.38,3.3927]
[1727182626473,24.4690796,147.41,147.39,9.4]
[1727182626667,24.4690796,147.41,147.32,3.47269199]
[1727182626867,25.7830796,147.41,147.37,9.4]
[1727182627070,27.1506796,147.41,147.37,9.4]
[1727182627371,27.1506796,147.41,147.37,12.7929]
[1727182628271,27.1506796,147.41,147.37,3.3929]
[1727182628773,27.1506796,147.41,147.36,14.66]
[1727182629875,27.1506796,147.41,147.39,3.3924]
[1727182630065,27.1506796,147.41,147.38,14.66]
[1727182630679,24.4690796,147.41,147.4,3.3923]
[1727182635177,24.4690796,147.41,147.35,81.44]
[1727182635474,1.3178,147.4,147.35,81.44]
[1727182635670,4.0806,147.4,147.36,3.393]
[1727182635976,4.0806,147.4,147.35,81.44]
[1727182636172,4.0806,147.4,147.36,3.393]
[1727182637280,4.0806,147.4,147.37,3.3929]
[1727182639384,24.4690796,147.41,147.38,3.3927]
[1727182640175,24.4690796,147.41,147.35,14.66]
[1727182640374,24.4690796,147.41,147.37,14.66]
[1727182640872,24.4690796,147.41,147.38,3.3927]
[1727182641873,24.4690796,147.41,147.39,3.3924]
[1727182645171,24.4690796,147.41,147.4,3.3923]
[1727182645372,24.4690796,147.41,147.37,14.66]
[1727182646481,24.4690796,147.41,147.4,3.3923]
[1727182649568,24.4690796,147.41,147.4,18.0523]
[1727182650376,24.4690796,147.41,147.4,12.7723]
[1727182652076,26.81140217,147.42,147.41,3.392]
[1727182652279,26.81140217,147.42,147.41,12.772]
[1727182653876,14.20406332,147.43,147.42,3.3918]
[1727182654076,14.20406332,147.43,147.42,12.7718]
[1727182656179,14.20406332,147.43,147.42,3.3918]
[1727182656378,14.20406332,147.43,147.42,12.7718]
[1727182661981,0.77121922,147.45,147.42,9.38]
[1727182662286,0.77121922,147.45,147.44,9.38]
[1727182663087,0.77121922,147.45,147.44,12.7713]
[1727182663778,1.69688231,147.47,147.46,3.3909]
[1727182663977,2.24708452,147.48,147.46,9.38]
[1727182664188,2.24708452,147.48,147.47,9.38]
[1727182664386,2.24708452,147.48,147.47,12.7706]
[1727182665091,2.24708452,147.48,147.47,9.38]
[1727182665293,1.63265782,147.49,147.47,9.38]
[1727182665587,1.63265782,147.49,147.48,9.38]
[1727182665789,1.63265782,147.49,147.48,12.7704]
[1727182666284,1.63265782,147.49,147.48,18.0504]
[1727182670489,1.63265782,147.49,147.44,14.66]
[1727182671491,1.63265782,147.49,147.46,3.3909]
[1727182673293,16.29265782,147.49,147.39,81.4]
[1727182673503,2.7774,147.48,147.4,3.34734684]
[1727182673894,3.391,147.46,147.4,3.3922]
[1727182674087,3.391,147.46,147.39,96.06]
[1727182674088,2.7774,147.48,147.39,99.48366187]
[1727182674490,6.1679,147.48,147.42,3.3917]
[1727182675192,6.1679,147.48,147.43,3.3915]
[1727182676091,2.7774,147.48,147.41,14.66]
[1727182679389,2.7774,147.48,147.37,106.71850333]
[1727182679390,18.01300902,147.47,147.37,106.71850333]
[1727182680604,3.3914,147.44,147.39,3.3923]
[1727182683506,3.391,147.46,147.41,3.3919]
[1727182683804,18.01300902,147.47,147.39,14.66]
[1727182684201,14.66,147.45,147.37,106.71850333]
[1727182684408,1.4028,147.44,147.37,106.71850333]
[1727182684707,4.7942,147.44,147.39,3.3924]
[1727182686309,9.38,147.43,147.39,12.7724]
[1727182688311,9.38,147.43,147.4,3.3922]
[1727182689005,9.38,147.43,147.39,12.7723]
[1727182690708,9.38,147.43,147.39,9.38]
[1727182690914,9.38,147.42,147.38,9.38]
[1727182691415,12.7719,147.42,147.38,12.7727]
[1727182691912,12.7719,147.42,147.38,9.38]
[1727182694516,9.38,147.42,147.38,12.7727]
[1727182694715,2.7226,147.43,147.4,9.38]
[1727182694918,2.7226,147.43,147.4,12.7721]
[1727182695122,1.4028,147.44,147.42,9.38]
[1727182695309,1.4028,147.44,147.41,9.38]
[1727182697720,4.7942,147.44,147.37,92.05850333]
[1727182697917,4.7942,147.44,147.4,9.38]
[1727182702425,4.7942,147.44,147.4,12.7722]
[1727182702619,1.4028,147.44,147.41,9.38]
[1727182703125,1.4028,147.44,147.37,92.05850333]
[1727182703321,1.4028,147.44,147.41,9.38]
[1727182703622,12.7712,147.45,147.41,9.38]
[1727182703825,3.391,147.46,147.42,9.38]
[1727182704316,15.5942,147.48,147.44,3.3913]
[1727182704520,12.2037,147.48,147.43,9.38]
[1727182704915,3.3908,147.47,147.43,12.7714]
[1727182705121,12.7708,147.47,147.43,12.7714]
[1727182705819,12.7708,147.47,147.44,3.3913]
[1727182707327,3.3909,147.46,147.44,3.3913]
[1727182707627,9.38,147.47,147.43,3.3915]
[1727182707924,3.391,147.46,147.43,3.3915]
[1727182708624,12.771,147.46,147.43,3.3915]
[1727182709022,3.3912,147.45,147.43,3.3915]
[1727182709924,12.771,147.46,147.41,9.38]
[1727182710519,9.38,147.46,147.44,3.3913]
[1727182710923,12.7707,147.47,147.44,3.3913]
[1727182711823,9.38,147.47,147.43,3.3914]
[1727182712020,9.38,147.46,147.43,3.3914]
[1727182712724,3.3912,147.45,147.42,12.7717]
[1727182715428,3.3912,147.45,147.42,9.38]
[1727182719428,9.38,147.44,147.38,1.3325]
[1727182719632,9.38,147.42,147.37,92.05850333]
[1727182719930,9.38,147.42,147.25,47.31723842]
[1727182719931,9.38,147.38,147.31,12.77628453]
[1727182720233,2.7302,147.43,147.3,10.7489]
[1727182720234,9.38,147.36,147.3,10.7489]
[1727182720530,3.3934,147.35,147.3,14.13380686]
[1727182720725,12.7734,147.35,147.3,14.13380686]
[1727182720932,9.38,147.35,147.3,14.13380686]
[1727182721228,9.38,147.36,147.32,9.38]
[1727182721830,9.38,147.36,147.32,12.774]
[1727182724229,3.3938,147.34,147.3,4.75380686]
[1727182724530,9.38,147.35,147.31,9.38]
[1727182725227,12.7736,147.35,147.31,9.38]
[1727182726024,12.7736,147.35,147.3,16.15940686]
[1727182726327,12.7736,147.35,147.3,3.3945]
[1727182726525,3.34282882,147.4,147.27,1.4322]
[1727182726730,9.38,147.31,147.25,9.38]
[1727182727028,9.38,147.31,147.25,12.70439405]
[1727182727433,3.3946,147.3,147.25,16.09989405]
[1727182727632,9.38,147.31,147.25,16.09989405]
[1727182727830,12.7744,147.31,147.26,3.3954]
[1727182728535,12.7744,147.31,147.26,12.7754]
[1727182730037,9.38,147.31,147.27,3.3952]
[1727182730232,3.3943,147.32,147.27,3.3952]
[1727182730432,9.38,147.31,147.27,3.3952]
[1727182732741,3.3943,147.32,147.28,9.38]
[1727182732932,12.7739,147.33,147.28,12.7749]
[1727182733533,12.7739,147.33,147.29,3.3948]
[1727182733937,1.3618,147.34,147.29,12.7748]
[1727182734140,9.38,147.33,147.29,12.7748]
[1727182736139,9.38,147.36,147.31,9.38]
[1727182736530,12.7733,147.36,147.31,12.7742]
[1727182736734,9.38,147.35,147.31,12.7742]
[1727182737334,1.3042,147.41,147.3,3.33978407]
[1727182737533,9.38,147.39,147.34,9.38]
[1727182738838,3.3927,147.38,147.34,12.7735]
[1727182739041,9.38,147.38,147.25,4.65408753]
[1727182739238,9.38,147.38,147.33,9.38]
[1727182739738,9.38,147.37,147.32,12.774]
[1727182739939,4.77198026,147.41,147.33,9.38]
[1727182739940,9.38,147.38,147.33,9.38]
[1727182740129,3.3929,147.38,147.33,12.7738]
[1727182740336,9.38,147.37,147.33,12.7738]
[1727182743142,12.7729,147.38,147.33,9.38]
[1727182744746,12.7729,147.38,147.33,12.7738]
[1727182746644,12.7729,147.38,147.34,3.3936]
[1727182747050,12.7729,147.38,147.31,3.45892735]
[1727182747340,12.7729,147.38,147.34,9.38]
[1727182747951,9.38,147.38,147.34,12.7735]
[1727182749746,12.7727,147.38,147.34,12.7735]
[1727182752861,3.393,147.37,147.34,9.38]
[1727182753957,3.393,147.37,147.34,12.7736]
[1727182754452,12.7728,147.38,147.34,12.7736]
[1727182760260,3.3923,147.4,147.36,9.38]
[1727182760557,3.3923,147.4,147.37,9.38]
[1727182760957,3.3923,147.4,147.37,12.7728]
[1727182761958,14.0763,147.41,147.38,3.3926]
[1727182762162,5.03050888,147.5,147.38,9.38]
[1727182762362,9.38,147.44,147.38,9.38]
[1727182762956,4.7017,147.43,147.39,3.3924]
[1727182764663,3.3918,147.42,147.39,3.3924]
[1727182765066,9.38,147.45,147.4,12.7722]
[1727182765363,3.3916,147.43,147.4,12.7722]
[1727182768363,3.3914,147.44,147.4,12.7722]
[1727182770368,3.3914,147.44,147.4,9.38]
[1727182770571,12.1006,147.46,147.42,9.38]
[1727182770874,12.1006,147.46,147.41,9.38]
[1727182771173,3.3912,147.45,147.41,12.7719]
[1727182771467,2.7206,147.46,147.33,4.63685744]
[1727182771672,9.38,147.45,147.4,9.38]
[1727182771974,3.3914,147.44,147.4,12.7722]
[1727182774072,9.38,147.45,147.4,12.7722]
[1727182774073,3.3916,147.43,147.4,12.7722]
[1727182774273,3.3916,147.43,147.4,9.38]
[1727182775178,3.3916,147.43,147.38,3.3926]
[1727182775477,3.3916,147.43,147.4,9.38]
[1727182775677,3.3916,147.43,147.38,3.3925]
[1727182775876,3.3916,147.43,147.39,9.38]
[1727182776378,3.3916,147.43,147.39,12.7725]
[1727182776673,3.3916,147.43,147.4,9.38]
[1727182776873,3.3914,147.44,147.4,12.7722]
[1727182777077,3.3914,147.44,147.41,9.38]
[1727182781482,3.3917,147.43,147.4,9.38]
[1727182793101,2.7206,147.46,147.36,3.393]
[1727182793386,9.38,147.42,147.38,9.38]
[1727182794293,9.38,147.44,147.4,9.38]
[1727182794682,3.3917,147.43,147.4,9.38]
[1727182797093,3.3917,147.43,147.39,12.7723]
[1727182797888,3.3914,147.44,147.4,9.38]
[1727182798191,9.38,147.45,147.4,9.38]
[1727182798385,9.38,147.45,147.4,12.7722]
[1727182798590,3.3915,147.44,147.4,12.7722]
[1727182798892,9.38,147.45,147.4,12.7722]
[1727182799188,9.38,147.44,147.33,4.63685744]
[1727182799391,9.38,147.43,147.38,9.38]
[1727182799992,3.3921,147.41,147.38,12.7726]
[1727182800189,9.38,147.43,147.38,12.7726]
[1727182800492,3.3919,147.42,147.39,9.38]
[1727182800879,9.38,147.44,147.39,9.38]
[1727182801084,3.392,147.42,147.39,9.38]
[1727182801989,3.3916,147.43,147.4,9.38]
[1727182803689,2.7206,147.46,147.41,9.38]
[1727182804095,2.7206,147.46,147.42,9.38]
[1727182804591,3.3912,147.45,147.42,12.7718]
[1727182804983,5.03050888,147.5,147.46,3.3907]
[1727182804984,5.03001889,147.5,147.46,3.3907]
[1727182805193,1.63991889,147.5,147.46,9.38]
[1727182805589,1.63991889,147.5,147.47,12.7705]
[1727182805887,1.63991889,147.5,147.47,9.38]
[1727182806086,5.02991889,147.5,147.46,12.7707]
[1727182806786,1.63991889,147.5,147.46,9.38]
[1727182806986,1.63991889,147.5,147.45,3.4366092]
[1727182806987,1.63991889,147.5,147.48,9.38]
[1727182807795,1.63991889,147.5,147.47,3.3905]
[1727182808090,1.63991889,147.5,147.47,12.7705]
[1727182808596,1.63991889,147.5,147.48,9.38]
[1727182809788,1.63991889,147.5,147.48,12.7704]
[1727182810795,1.51551889,147.5,147.49,3.3902]
[1727182810996,4.31473726,147.51,147.49,9.38]
[1727182811195,4.31473726,147.51,147.5,9.38]
[1727182811796,4.31473726,147.51,147.5,12.77]
[1727182811993,4.31473726,147.51,147.5,16.17850515]
[1727182812889,3.1034051,147.56,147.5,9.38]
[1727182813094,2.7351,147.66,147.55,9.38]
[1727182813399,5.35655491,147.62,147.6,9.38]
[1727182813605,5.35655491,147.62,147.61,12.7674]
[1727182813897,9.2683874,147.67,147.61,9.38]
[1727182814099,9.2683874,147.67,147.62,3.3872]
[1727182814301,9.2683874,147.67,147.62,18.0172]
[1727182814803,9.2683874,147.67,147.62,14.63]
[1727182815301,10.74630193,147.64,147.63,14.63]
[1727182815597,10.74630193,147.64,147.63,18.017]
[1727182815809,9.2683874,147.67,147.63,14.63]
[1727182816002,9.2683874,147.67,147.63,18.017]
[1727182816202,9.2683874,147.67,147.62,14.63]
[1727182816799,9.2683874,147.67,147.63,3.3869]
[1727182818100,12.6544874,147.67,147.62,14.63]
[1727182818306,9.2683874,147.67,147.62,14.63]
[1727182818697,12.6544874,147.67,147.62,14.63]
[1727182818897,9.2683874,147.67,147.62,14.63]
[1727182819403,9.2683874,147.67,147.62,18.017]
[1727182820008,9.2683874,147.67,147.63,3.3869]
[1727182820708,9.2683874,147.67,147.64,14.63]
[1727182820902,9.2683874,147.67,147.65,3.3864]
[1727182821203,9.2683874,147.67,147.66,14.63]
[1727182822396,9.2683874,147.67,147.66,18.0163]
[1727182823207,4.74685952,147.68,147.67,3.386]
[1727182824601,4.74685952,147.68,147.66,18.0162]
[1727182824803,4.74685952,147.68,147.64,14.63]
[1727182825300,4.74685952,147.68,147.65,3.3865]
[1727182825504,8.13285952,147.68,147.63,14.63]
[1727182825700,4.74685952,147.68,147.63,14.63]
[1727182826413,4.74685952,147.68,147.63,18.0168]
[1727182826612,4.74685952,147.68,147.65,14.63]
[1727182827609,4.74685952,147.68,147.65,18.0163]
[1727182827808,4.74685952,147.68,147.65,14.63]
[1727182830213,4.74685952,147.68,147.65,18.0164]
[1727182831005,4.74685952,147.68,147.6,91.92928608]
[1727182831212,20.77575952,147.68,147.5,13.5697]
[1727182831515,3.3872,147.63,147.58,3.3881]
[1727182831808,3.3872,147.63,147.58,18.0181]
[1727182832202,16.0357,147.67,147.6,14.63]
[1727182832606,3.3867,147.65,147.6,18.0176]
[1727182832907,1.4057,147.67,147.61,14.63]
[1727182833709,1.4057,147.67,147.59,3.40833808]
[1727182833710,1.4057,147.67,147.63,14.63]
[1727182834212,4.7919,147.67,147.63,14.63]
[1727182834815,1.4057,147.67,147.63,18.017]
[1727182835015,1.4057,147.67,147.63,14.63]
[1727182835215,6.14575952,147.68,147.63,14.63]
[1727182835512,6.14575952,147.68,147.64,3.3866]
[1727182835816,6.14575952,147.68,147.63,14.63]
[1727182836110,9.53165952,147.68,147.63,14.63]
[1727182836306,6.14575952,147.68,147.56,81.3]
[1727182836612,6.14575952,147.68,147.61,14.63]
[1727182836812,6.14575952,147.68,147.62,14.63]
[1727182837017,6.14575952,147.68,147.63,3.3868]
[1727182837418,9.53175952,147.68,147.63,3.3868]
[1727182837916,3.3861,147.67,147.63,3.3868]
[1727182838815,3.3866,147.65,147.61,3.3872]
[1727182839014,20.77575952,147.68,147.43,236.79]
[1727182839214,14.63,147.58,147.5,14.63]
[1727182839407,3.3888,147.56,147.5,14.63]
[1727182839711,3.3888,147.56,147.42,84.63953858]
[1727182839712,3.993,147.57,147.48,14.63]
[1727182839909,14.63,147.56,147.45,14.63]
[1727182840110,3.993,147.57,147.43,14.63]
[1727182840111,14.63,147.54,147.43,14.63]
[1727182840310,14.63,147.52,147.42,95.93]
[1727182840618,3.3904,147.49,147.43,3.3914]
[1727182841013,14.63,147.52,147.42,95.93]
[1727182841214,3.3904,147.49,147.42,99.3217]
[1727182842217,3.39,147.5,147.42,99.3217]
[1727182842415,3.39,147.5,147.42,84.6917]
[1727182842818,3.39,147.5,147.43,3.3914]
[1727182843519,23.44,147.55,147.43,23.44]
[1727182843920,3.3898,147.51,147.44,3.3912]
[1727182844524,3.3898,147.51,147.45,3.3911]
[1727182846217,3.3898,147.51,147.46,3.3908]
[1727182846616,3.3898,147.51,147.42,81.3]
[1727182846617,3.3893,147.53,147.45,23.44]
[1727182847522,3.3893,147.53,147.48,3.3904]
[1727182848722,3.3893,147.53,147.49,3.3902]
[1727182851128,3.3893,147.53,147.5,3.3899]
[1727182852331,3.993,147.57,147.47,23.44]
[1727182853030,3.3888,147.55,147.52,3.3893]
[1727182854031,3.3888,147.55,147.51,3.3896]
[1727182855733,3.3886,147.56,147.53,3.3892]
[1727182858739,27.433,147.57,147.45,23.44]
[1727182858943,13.94866678,147.56,147.45,23.44]
[1727182859141,3.3892,147.54,147.45,23.44]
[1727182860041,3.3888,147.55,147.51,3.3897]
[1727182860244,3.3888,147.55,147.45,23.44]
[1727182860541,3.3888,147.55,147.5,3.3899]
[1727182860742,13.94866678,147.56,147.42,84.83494405]
[1727182860941,13.94866678,147.56,147.45,23.44]
[1727182861139,13.94866678,147.55,147.5,3.3899]
[1727182861331,3.389,147.55,147.5,3.3899]
[1727182862342,3.3892,147.54,147.49,3.3901]
[1727182862842,3.3892,147.54,147.47,14.66]
[1727182863746,3.3892,147.54,147.49,3.3902]
[1727182864445,3.3893,147.53,147.49,3.3902]
[1727182867442,3.993,147.57,147.47,14.66]
[1727182867743,14.66,147.55,147.47,14.66]
[1727182867935,3.3896,147.52,147.48,3.3903]
[1727182869638,3.993,147.57,147.5,14.66]
[1727182869846,3.993,147.57,147.52,14.66]
[1727182870037,2.6796,147.57,147.52,14.66]
[1727182870238,2.6796,147.57,147.54,3.3889]
[1727182871345,2.6796,147.57,147.55,3.3888]
[1727182871644,3.388,147.59,147.55,3.3888]
[1727182871840,2.7763,147.6,147.55,3.3888]
[1727182872953,3.3881,147.58,147.55,3.3888]
[1727182874439,14.66,147.57,147.45,3.45595714]
[1727182874642,14.66,147.57,147.48,14.66]
[1727182874843,18.03898305,147.57,147.48,14.66]
[1727182875044,3.37898305,147.57,147.5,14.66]
[1727182875345,14.66,147.59,147.5,14.66]
[1727182875745,2.7763,147.6,147.52,14.66]
[1727182875948,6.14070677,147.6,147.52,14.66]
[1727182876151,3.3883,147.58,147.53,3.3891]
[1727182877758,14.66,147.57,147.48,14.66]
[1727182878558,3.389,147.55,147.48,18.12237288]
[1727182879058,14.66,147.57,147.51,3.3895]
[1727182879059,3.3886,147.56,147.51,3.3895]
[1727182879660,3.3889,147.55,147.48,18.12237288]
[1727182880460,3.3889,147.55,147.51,3.3897]
[1727182880659,3.3894,147.53,147.46,14.66]
[1727182880857,14.66,147.54,147.44,14.66]
[1727182881059,17.4035,147.54,147.44,14.66]
[1727182881749,3.3897,147.52,147.47,3.3905]
[1727182882254,3.3897,147.52,147.44,14.66]
[1727182882651,3.3897,147.52,147.48,3.3903]
[1727182884760,3.3894,147.53,147.48,3.3903]
[1727182890760,3.3894,147.53,147.49,3.3902]
[1727182891862,3.3895,147.52,147.48,3.3903]
[1727182892353,4.0904,147.54,147.44,14.66]
[1727182892354,14.66,147.53,147.44,14.66]
[1727182892557,3.3899,147.51,147.47,3.3905]
[1727182893454,3.3899,147.51,147.45,3.3909]
[1727182893455,14.66,147.51,147.45,3.3909]
[1727182894055,3.3902,147.49,147.45,3.3909]
[1727182894258,14.66,147.51,147.42,18.04814674]
[1727182894763,14.66,147.53,147.46,3.3907]
[1727182895273,3.3899,147.51,147.46,3.3907]
[1727182896763,3.3899,147.51,147.47,3.3906]
[1727182897565,14.66,147.53,147.45,14.66]
[1727182897766,2.7435,147.54,147.48,14.66]
[1727182897964,16.0529,147.59,147.5,14.66]
[1727182898169,3.3883,147.58,147.54,3.3889]
[1727182898367,4.1967,147.59,147.52,14.66]
[1727182899067,7.5847,147.59,147.55,3.3888]
[1727182901462,7.5847,147.59,147.56,3.3886]
[1727182903976,3.3882,147.58,147.52,14.66]
[1727182905070,3.3882,147.58,147.52,17.98666126]
[1727182905273,3.3882,147.58,147.52,14.66]
[1727182905470,3.3882,147.58,147.52,18.0785224]
[1727182905972,7.5847,147.59,147.52,18.12191069]
[1727182906569,7.5847,147.59,147.54,3.389]
[1727182907373,14.66,147.57,147.51,3.3896]
[1727182907579,14.66,147.57,147.48,14.66]
[1727182908276,3.3887,147.56,147.52,3.3895]
[1727182909882,18.8567,147.59,147.53,3.3892]
[1727182910481,18.8567,147.59,147.51,14.66]
[1727182910689,4.1967,147.59,147.51,14.66]
[1727182911182,14.66,147.64,147.54,14.66]
[1727182911488,14.66,147.66,147.56,14.66]
[1727182911887,3.3869,147.64,147.6,3.3877]
[1727182912288,14.66,147.66,147.56,14.66]
[1727182913878,14.66,147.66,147.59,3.3877]
[1727182914888,14.66,147.65,147.59,3.3877]
[1727182915086,14.66,147.65,147.58,3.388]
[1727182915488,3.387,147.63,147.58,3.388]
[1727182916092,3.387,147.63,147.59,3.3879]
[1727182916392,3.3868,147.64,147.56,14.66]
[1727182916991,3.3868,147.64,147.58,14.66]
[1727182917586,3.3868,147.64,147.6,3.3875]
[1727182918083,22.1615495,147.67,147.58,14.66]
[1727182918084,18.7064,147.67,147.58,14.66]
[1727182918292,4.0464,147.67,147.6,14.66]
[1727182918690,4.0464,147.67,147.63,3.3869]
[1727182918691,3.3864,147.66,147.63,3.3869]
[1727182920183,3.3864,147.66,147.62,3.3871]
[1727182920590,3.3865,147.65,147.62,3.3871]
[1727182920797,22.13009554,147.67,147.61,3.3874]
[1727182921185,3.3869,147.64,147.58,14.66]
[1727182921680,3.3864,147.66,147.58,14.66]
[1727182922082,3.3864,147.66,147.6,14.66]
[1727182922282,3.3864,147.66,147.62,3.3871]
[1727182922485,7.4325,147.67,147.6,14.66]
[1727182922694,7.4325,147.67,147.62,14.66]
[1727182922695,4.0464,147.67,147.62,14.66]
[1727182922991,4.74685952,147.68,147.65,3.3864]
[1727182924387,4.74685952,147.68,147.64,14.66]
[1727182924604,4.74685952,147.68,147.66,14.66]
[1727182924993,4.74685952,147.68,147.67,3.386]
[1727182925296,4.74685952,147.68,147.67,18.046]
[1727182925688,10.10828075,147.7,147.69,3.3856]
[1727182925890,15.75899211,147.72,147.69,14.66]
[1727182926089,15.75899211,147.72,147.71,14.66]
[1727182926290,5.70615188,147.74,147.71,14.66]
[1727182926291,5.70615188,147.74,147.73,3.3847]
[1727182926491,5.70615188,147.74,147.73,18.0447]
[1727182930590,10.96100655,147.75,147.74,3.3844]
[1727182930797,11.38628189,147.79,147.73,14.66]
[1727182931000,11.38628189,147.79,147.66,91.88691361]
[1727182931293,11.38628189,147.79,147.74,3.3843]
[1727182931294,14.76968189,147.79,147.74,3.3843]
[1727182932502,11.38628189,147.79,147.75,3.3842]
[1727182932694,11.38628189,147.79,147.75,18.0442]
[1727182934703,11.38628189,147.79,147.74,14.66]
[1727182934900,11.38628189,147.79,147.77,14.66]
[1727182935797,11.38628189,147.79,147.77,18.0438]
[1727182939409,11.38628189,147.79,147.77,21.4976071]
[1727182942001,11.38628189,147.79,147.74,14.66]
[1727182942609,11.38628189,147.79,147.76,3.384]
[1727182947007,11.38628189,147.79,147.69,84.72391622]
[1727182947199,15.22446028,147.78,147.71,14.66]
[1727182947405,3.384,147.76,147.71,14.66]
[1727182947706,15.22446028,147.78,147.72,3.3849]
[1727182948101,3.3839,147.77,147.72,3.3849]
[1727182948507,15.22446028,147.78,147.73,3.3846]
[1727182948712,15.22446028,147.78,147.73,14.66]
[1727182949108,15.22446028,147.78,147.74,3.3842]
[1727182949701,15.22446028,147.78,147.73,14.66]
[1727182950303,15.22446028,147.78,147.74,14.66]
[1727182950508,12.37876028,147.78,147.76,14.66]
[1727182951105,12.37876028,147.78,147.77,3.3838]
[1727182954619,12.37876028,147.78,147.76,18.0439]
[1727182956820,12.37876028,147.78,147.76,14.66]
[1727182957016,12.37876028,147.78,147.75,3.3841]
[1727182957411,12.37876028,147.78,147.74,14.66]
[1727182957717,12.37876028,147.78,147.76,14.66]
[1727182959415,15.76226028,147.78,147.76,14.66]
[1727182959716,12.37876028,147.78,147.74,18.0443]
[1727182959918,12.37876028,147.78,147.74,14.66]
[1727182960221,12.37876028,147.78,147.76,14.66]
[1727182960817,12.37876028,147.78,147.77,3.3838]
[1727182966224,12.37876028,147.78,147.76,18.0439]
[1727182966524,12.37876028,147.78,147.77,9.36]
[1727182967722,12.37876028,147.78,147.7,81.22]
[1727182967925,12.37876028,147.78,147.77,9.36]
[1727182969826,12.37876028,147.78,147.77,12.7438]
[1727182971325,12.37876028,147.78,147.77,9.36]
[1727182972326,12.37876028,147.78,147.7,81.22]
[1727182972526,12.37876028,147.78,147.74,9.36]
[1727182973027,15.76246028,147.78,147.75,9.36]
[1727182974724,12.37876028,147.78,147.77,9.36]
[1727182974919,12.37876028,147.78,147.72,3.40790861]
[1727182975122,12.37876028,147.78,147.77,9.36]
[1727182975328,12.37876028,147.78,147.72,3.32374246]
[1727182975519,12.37876028,147.78,147.75,9.36]
[1727182976229,15.76236028,147.78,147.75,9.36]